[Event "IX Iberoamericano Championship 2023"]
[Site "Panama City"]
[Date "2023.11.27"]
[Round "1.14"]
[White "Neira Rodriguez, Carlos Fernando"]
[Black "Sanchez Alvarez, Roberto Carlos"]
[Result "0-1"]
[ECO "E11"]
[WhiteElo "1996"]
[BlackElo "2437"]
[Annotator "RC"]
[PlyCount "116"]
[EventDate "2023.11.27"]
[EventType "swiss"]
[EventCountry "PAN"]
[SourceTitle "playchess.com"]
[Source "ChessBase"]
[SourceQuality "1"]
[TimeControl "5400+30"]

1. d4 {[%emt 0:00:03]} Nf6 {[%emt 0:00:12]} 2. c4 {[%emt 0:00:10]} e6 {[%emt 0:00:11]} 3. Nf3 {[%emt 0:00:12]} Bb4+ {[%emt 0:04:58]} 4. Bd2 {[%emt 0:01:09]} a5 {[%emt 0:00:11]} 5. a3 {[%emt 0:01:23]} Bxd2+ {[%emt 0:01:53]} 6. Nbxd2 {[%emt 0:00:51]} d6 {[%emt 0:04:23]} 7. g3 {[%emt 0:04:32]} O-O {[%emt 0:04:30]} 8. Bg2 {[%emt 0:00:15]} Qe7 {[%emt 0:00:09]} 9. O-O {[%emt 0:02:30]} e5 {[%emt 0:00:34]} 10. dxe5 {[%emt 0:00:45]} dxe5 {[%emt 0:00:04]} 11. e3 {[%emt 0:01:37]} Bf5 {[%emt 0:07:02]} 12. Qb3 {[%emt 0:15:54]} c6 {[%emt 0:13:20]} 13. Qc3 {[%emt 0:11:58]} Nbd7 {[%emt 0:12:04]} 14. Nh4 {[%emt 0:16:46]} Bg6 {[%emt 0:04:02]} 15. Nxg6 {[%emt 0:01:12]} hxg6 {[%emt 0:00:03]} 16. b4 {[%emt 0:08:49]} Rfd8 {[%emt 0:03:43]} 17. Rfd1 {[%emt 0:01:39]} e4 {[%emt 0:10:55]} 18. bxa5 {[%emt 0:05:58]} Nc5 {[%emt 0:04:45]} 19. Nb3 {[%emt 0:03:41]} Rxd1+ {[%emt 0:04:23]} 20. Rxd1 {[%emt 0:00:03]} Nxb3 {[%emt 0:00:16]} 21. Qxb3 {[%emt 0:00:04]} Rxa5 {[%emt 0:00:15]} 22. a4 {[%emt 0:02:05]} Ra7 {[%emt 0:03:03]} 23. Rd4 {[%emt 0:01:42]} c5 {[%emt 0:03:39]} 24. Rd1 {[%emt 0:02:04]} Qc7 {[%emt 0:00:45]} 25. Qc2 {[%emt 0:04:29]} Qc6 {[%emt 0:01:03]} 26. Ra1 {[%emt 0:00:57]} b6 {[%emt 0:00:43]} 27. Ra2 {[%emt 0:01:56]} Qe6 {[%emt 0:02:42]} 28. Ra1 {[%emt 0:01:44]} Qe5 {[%emt 0:03:53]} 29. Rd1 {[%emt 0:01:17]} Qe8 {[%emt 0:00:11]} 30. Ra1 {[%emt 0:00:48]} Rd7 {[%emt 0:01:24]} 31. Rd1 {[%emt 0:01:20]} Ra7 {[%emt 0:00:44]} 32. Ra1 {[%emt 0:00:06]} Qa8 {[%emt 0:00:44]} 33. Qb3 {[%emt 0:02:06]} Qc6 {[%emt 0:04:03]} 34. Qc2 {[%emt 0:00:02]} Qe8 {[%emt 0:03:11]} 35. Qb3 {[%emt 0:01:33]} Qe6 {[%emt 0:00:33]} 36. Rd1 {[%emt 0:00:34]} Nd7 {[%emt 0:00:30]} 37. f4 {[%emt 0:02:00]} exf3 {[%emt 0:01:31]} 38. Bxf3 {[%emt 0:00:02]} Nf6 {[%emt 0:00:45]} 39. Rd8+ {[%emt 0:02:19]} Kh7 {[%emt 0:00:01]} 40. Kg2 {[%emt 0:00:12]} Ng4 {[%emt 0:01:23]} 41. Bxg4 {[%emt 0:01:34]} Qxg4 {[%emt 0:00:01]} 42. Rd2 {[%emt 0:00:38]} Qe4+ {[%emt 0:00:23]} 43. Kg1 {[%emt 0:01:26]} Re7 {[%emt 0:00:09]} 44. Rd3 {[%emt 0:00:26]} Re6 {[%emt 0:00:15]} 45. Rc3 {[%emt 0:00:27]} Qf3 {[%emt 0:01:07]} 46. Rd3 {[%emt 0:00:43]} Qe2 {[%emt 0:01:02]} 47. Qd1 {[%emt 0:01:26]} Qxd1+ {[%emt 0:00:12]} 48. Rxd1 {[%emt 0:00:01]} Rxe3 {[%emt 0:00:06]} 49. a5 {[%emt 0:00:59]} bxa5 {[%emt 0:00:14]} 50. Rd5 {[%emt 0:00:01]} Re7 {[%emt 0:00:53]} 51. Rxc5 {[%emt 0:00:02]} Ra7 {[%emt 0:00:05]} 52. Rb5 {[%emt 0:00:17]} a4 {[%emt 0:00:20]} 53. Rb2 {[%emt 0:00:01]} g5 {[%emt 0:00:30]} 54. c5 {[%emt 0:00:17]} Kg6 {[%emt 0:00:06]} 55. c6 {[%emt 0:00:08]} a3 {[%emt 0:01:05]} 56. Ra2 {[%emt 0:00:01]} Kf5 {[%emt 0:00:18]} 57. c7 {[%emt 0:00:13]} Rxc7 {[%emt 0:00:04]} 58. Rxa3 {[%emt 0:00:03]} Kg4 {[%emt 0:00:07]} 0-1

[Event "IX Iberoamericano Championship 2023"]
[Site "Panama City"]
[Date "2023.11.27"]
[Round "1.15"]
[White "Flores Quillas, Diego Saul Rodri"]
[Black "Pazos Gambarrotti, Plinio"]
[Result "1-0"]
[ECO "C63"]
[WhiteElo "2414"]
[BlackElo "1995"]
[Annotator "RC"]
[PlyCount "59"]
[EventDate "2023.11.27"]
[EventType "swiss"]
[EventCountry "PAN"]
[SourceTitle "playchess.com"]
[Source "ChessBase"]
[SourceQuality "1"]
[TimeControl "5400+30"]

1. e4 {[%emt 0:01:09]} e5 {[%emt 0:00:30]} 2. Nf3 {[%emt 0:00:05]} Nc6 {[%emt 0:00:08]} 3. Bb5 {[%emt 0:00:05]} f5 {[%emt 0:00:17]} 4. Nc3 {[%emt 0:00:09]} Nf6 {[%emt 0:00:08]} 5. exf5 {[%emt 0:00:08]} e4 {[%emt 0:00:07]} 6. Nh4 {[%emt 0:00:11]} d5 {[%emt 0:00:07]} 7. d3 {[%emt 0:01:18]} exd3 {[%emt 0:03:56]} 8. Bxd3 {[%emt 0:00:19]} Be7 {[%emt 0:00:42]} 9. O-O {[%emt 0:01:03]} O-O {[%emt 0:00:07]} 10. Bg5 {[%emt 0:01:26]} Ne4 {[%emt 0:06:13]} 11. Bxe4 {[%emt 0:02:04]} Bxg5 {[%emt 0:00:50]} 12. Qxd5+ {[%emt 0:00:42]} Kh8 {[%emt 0:01:04]} 13. Nf3 {[%emt 0:01:06]} Qf6 {[%emt 0:01:23]} 14. Rad1 {[%emt 0:07:25]} Ne7 {[%emt 0:01:11]} 15. Qc5 {[%emt 0:00:36]} Bxf5 {[%emt 0:01:38]} 16. Bxf5 {[%emt 0:01:30]} Qxf5 {[%emt 0:02:09]} 17. Qxf5 {[%emt 0:00:14]} Rxf5 {[%emt 0:00:06]} 18. Nxg5 {[%emt 0:00:11]} Rxg5 {[%emt 0:00:07]} 19. Rd7 {[%emt 0:00:09]} Nc6 {[%emt 0:00:31]} 20. Rxc7 {[%emt 0:00:14]} Rb8 {[%emt 0:01:02]} 21. Rd1 {[%emt 0:00:22]} h6 {[%emt 0:00:55]} 22. f4 {[%emt 0:01:22]} Rf5 {[%emt 0:01:07]} 23. g3 {[%emt 0:00:58]} Nd8 {[%emt 0:00:32]} 24. Rdd7 {[%emt 0:01:27]} g5 {[%emt 0:02:24]} 25. Re7 {[%emt 0:03:41]} Nc6 {[%emt 0:00:28]} 26. Rh7+ {[%emt 0:01:37]} Kg8 {[%emt 0:01:06]} 27. Rxh6 {[%emt 0:02:11]} gxf4 {[%emt 0:00:39]} 28. Ne4 {[%emt 0:00:11]} Rbf8 {[%emt 0:00:48]} 29. Rg6+ {[%emt 0:00:21]} Kh8 {[%emt 0:00:07]} 30. Ng5 {[%emt 0:00:18]} 1-0

[Event "IX Iberoamericano Championship 2023"]
[Site "Panama City"]
[Date "2023.11.27"]
[Round "1.16"]
[White "Wong Pages, Juan"]
[Black "Ticona Rocabado, Licael Roderick"]
[Result "0-1"]
[ECO "C54"]
[WhiteElo "1988"]
[BlackElo "2412"]
[Annotator "RC"]
[PlyCount "124"]
[EventDate "2023.11.27"]
[EventType "swiss"]
[EventCountry "PAN"]
[SourceTitle "playchess.com"]
[Source "ChessBase"]
[SourceQuality "1"]
[TimeControl "5400+30"]

1. e4 {[%emt 0:00:02]} e5 {[%emt 0:00:08]} 2. Nf3 {[%emt 0:00:08]} Nc6 {[%emt 0:00:08]} 3. Bc4 {[%emt 0:00:21]} Bc5 {[%emt 0:00:08]} 4. d3 {[%emt 0:00:24]} Nf6 {[%emt 0:00:12]} 5. O-O {[%emt 0:00:14]} O-O {[%emt 0:00:11]} 6. c3 {[%emt 0:00:13]} d5 {[%emt 0:00:30]} 7. exd5 {[%emt 0:01:19]} Nxd5 {[%emt 0:00:08]} 8. b4 {[%emt 0:04:25]} Be7 {[%emt 0:01:05]} 9. Re1 {[%emt 0:12:12]} Bf6 {[%emt 0:00:17]} 10. Bb2 {[%emt 0:21:53]} Nf4 {[%emt 0:01:01]} 11. Re3 {[%emt 0:02:34]} Bg4 {[%emt 0:01:13]} 12. Qb3 {[%emt 0:04:50]} a5 {[%emt 0:09:23]} 13. Nbd2 {[%emt 0:09:52]} a4 {[%emt 0:01:37]} 14. Qc2 {[%emt 0:00:43]} a3 {[%emt 0:01:08]} 15. Bc1 {[%emt 0:00:11]} Ne7 {[%emt 0:04:02]} 16. Nxe5 {[%emt 0:03:49]} Bxe5 {[%emt 0:00:59]} 17. Rxe5 {[%emt 0:00:09]} Neg6 {[%emt 0:00:04]} 18. Re3 {[%emt 0:08:40]} Nh4 {[%emt 0:04:29]} 19. g3 {[%emt 0:04:59]} Nh3+ {[%emt 0:00:34]} 20. Kf1 {[%emt 0:00:14]} Nf5 {[%emt 0:00:21]} 21. Re4 {[%emt 0:01:05]} Qf6 {[%emt 0:00:28]} 22. Nb3 {[%emt 0:03:54]} Bf3 {[%emt 0:00:38]} 23. Nc5 {[%emt 0:03:05]} Bd1 {[%emt 0:04:07]} 24. Qxd1 {[%emt 0:06:09]} Nxg3+ {[%emt 0:00:07]} 25. Kg2 {[%emt 0:00:06]} Nxf2 {[%emt 0:02:04]} 26. Qf3 {[%emt 0:00:37]} Qxc3 {[%emt 0:00:10]} 27. Re7 {[%emt 0:06:46]} Qxa1 {[%emt 0:00:06]} 28. Qxf2 {[%emt 0:00:55]} Qxc1 {[%emt 0:00:33]} 29. hxg3 {[%emt 0:00:10]} Qb2 {[%emt 0:01:45]} 30. Re2 {[%emt 0:02:25]} Qxb4 {[%emt 0:01:02]} 31. Nd7 {[%emt 0:00:06]} b5 {[%emt 0:01:01]} 32. Bb3 {[%emt 0:00:18]} Qd6 {[%emt 0:00:38]} 33. Nxf8 {[%emt 0:00:13]} Rxf8 {[%emt 0:00:02]} 34. Qf4 {[%emt 0:01:11]} Qd7 {[%emt 0:01:06]} 35. Qb4 {[%emt 0:01:42]} g6 {[%emt 0:01:28]} 36. Qe7 {[%emt 0:01:05]} Qc6+ {[%emt 1:05:37]} 37. Qe4 {[%emt 0:00:17]} Qb6 {[%emt 0:00:00]} 38. Rf2 {[%emt 0:00:30]} Qd6 {[%emt 0:00:00]} 39. Rxf7 {[%emt 0:01:01]} Rxf7 {[%emt 0:00:00]} 40. Qe8+ {[%emt 0:00:04]} Qf8 {[%emt 0:00:00]} 41. Bxf7+ {[%emt 0:00:04]} Kg7 {[%emt 0:00:00]} 42. Qxf8+ {[%emt 0:00:06]} Kxf8 {[%emt 0:00:00]} 43. Bd5 {[%emt 0:00:09]} Ke7 {[%emt 0:00:00]} 44. Bc6 {[%emt 0:00:06]} b4 {[%emt 0:00:00]} 45. Bd5 {[%emt 0:00:09]} Kd6 {[%emt 0:00:00]} 46. Bc4 {[%emt 0:00:37]} Ke5 {[%emt 0:00:00]} 47. Kf3 {[%emt 0:00:19]} Kd4 {[%emt 0:00:00]} 48. Ke2 {[%emt 0:01:08]} h5 {[%emt 0:00:00]} 49. Kd2 {[%emt 0:00:49]} g5 {[%emt 0:00:00]} 50. Kc2 {[%emt 0:01:05]} Ke5 {[%emt 0:00:00]} 51. Kb3 {[%emt 0:01:11]} c5 {[%emt 0:00:00]} 52. Bf7 {[%emt 0:00:58]} h4 {[%emt 0:00:00]} 53. gxh4 {[%emt 0:00:05]} gxh4 {[%emt 0:00:00]} 54. Kc4 {[%emt 0:00:39]} h3 {[%emt 0:00:00]} 55. Be8 {[%emt 0:00:35]} h2 {[%emt 0:00:00]} 56. Bc6 {[%emt 0:00:02]} Kf4 {[%emt 0:00:00]} 57. Bb7 {[%emt 0:00:57]} Ke3 {[%emt 0:00:00]} 58. Be4 {[%emt 0:00:16]} Ke2 {[%emt 0:00:00]} 59. Kb3 {[%emt 0:00:50]} Kd2 {[%emt 0:00:00]} 60. Kc4 {[%emt 0:00:29]} Kc2 {[%emt 0:00:00]} 61. d4+ {[%emt 0:00:30]} Kb2 {[%emt 0:00:00]} 62. dxc5 {[%emt 0:00:08]} b3 {[%emt 0:00:00]} 0-1

[Event "IX Iberoamericano Championship 2023"]
[Site "Panama City"]
[Date "2023.11.27"]
[Round "1.17"]
[White "Rodriguez Vila, Andres"]
[Black "Sanchez Manzanares, Jorge Luis"]
[Result "1-0"]
[ECO "B07"]
[WhiteElo "2405"]
[BlackElo "1987"]
[Annotator "RC"]
[PlyCount "43"]
[EventDate "2023.11.27"]
[EventType "swiss"]
[EventCountry "PAN"]
[SourceTitle "playchess.com"]
[Source "ChessBase"]
[SourceQuality "1"]
[TimeControl "5400+30"]

1. d4 {[%emt 0:00:07]} Nf6 {[%emt 0:00:11]} 2. Nc3 {[%emt 0:00:28]} g6 {[%emt 0:00:17]} 3. Bf4 {[%emt 0:00:04]} Bg7 {[%emt 0:00:07]} 4. Qd2 {[%emt 0:00:04]} d6 {[%emt 0:00:06]} 5. e4 {[%emt 0:00:09]} c6 {[%emt 0:00:07]} 6. O-O-O {[%emt 0:00:09]} Qa5 {[%emt 0:00:17]} 7. Kb1 {[%emt 0:00:27]} b5 {[%emt 0:00:06]} 8. e5 {[%emt 0:00:32]} Nh5 {[%emt 0:03:45]} 9. exd6 {[%emt 0:00:23]} Nxf4 {[%emt 0:01:32]} 10. Qxf4 {[%emt 0:00:21]} O-O {[%emt 0:01:42]} 11. dxe7 {[%emt 0:01:25]} Re8 {[%emt 0:00:09]} 12. Qd6 {[%emt 0:12:25]} Be6 {[%emt 0:02:02]} 13. d5 {[%emt 0:00:56]} cxd5 {[%emt 0:14:31]} 14. Bxb5 {[%emt 0:04:49]} Nc6 {[%emt 0:09:27]} 15. Bxc6 {[%emt 0:02:49]} Rab8 {[%emt 0:07:19]} 16. Nge2 {[%emt 0:01:31]} Bxc3 {[%emt 0:02:43]} 17. Nxc3 {[%emt 0:00:11]} Qxc3 {[%emt 0:00:20]} 18. Qxb8 {[%emt 0:00:10]} Qxc6 {[%emt 0:00:35]} 19. Qd8 {[%emt 0:00:44]} Qc8 {[%emt 0:03:17]} 20. Qxc8 {[%emt 0:00:50]} Rxc8 {[%emt 0:00:02]} 21. Rhe1 {[%emt 0:00:11]} Re8 {[%emt 0:00:13]} 22. c4 {[%emt 0:01:00]} 1-0

[Event "IX Iberoamericano Championship 2023"]
[Site "Panama City"]
[Date "2023.11.27"]
[Round "1.18"]
[White "Pastor Carvajal, Jeigoth"]
[Black "Zambrana, Osvaldo"]
[Result "1/2-1/2"]
[ECO "B23"]
[WhiteElo "1985"]
[BlackElo "2400"]
[Annotator "RC"]
[PlyCount "37"]
[EventDate "2023.11.27"]
[EventType "swiss"]
[EventCountry "PAN"]
[SourceTitle "playchess.com"]
[Source "ChessBase"]
[SourceQuality "1"]
[TimeControl "5400+30"]

1. e4 {[%emt 0:00:04]} c5 {[%emt 0:00:15]} 2. Nc3 {[%emt 0:00:07]} Nc6 {[%emt 0:01:14]} 3. Bb5 {[%emt 0:00:15]} e6 {[%emt 0:03:15]} 4. Bxc6 {[%emt 0:00:11]} bxc6 {[%emt 0:00:03]} 5. d3 {[%emt 0:00:06]} d5 {[%emt 0:00:32]} 6. f4 {[%emt 0:00:56]} Be7 {[%emt 0:04:43]} 7. Nf3 {[%emt 0:02:24]} Nf6 {[%emt 0:01:37]} 8. O-O {[%emt 0:01:22]} O-O {[%emt 0:00:13]} 9. Qe1 {[%emt 0:05:23]} d4 {[%emt 0:04:56]} 10. Na4 {[%emt 0:02:43]} c4 {[%emt 0:02:45]} 11. dxc4 {[%emt 0:06:52]} c5 {[%emt 0:01:47]} 12. e5 {[%emt 0:05:00]} Nd7 {[%emt 0:04:23]} 13. b3 {[%emt 0:02:44]} Bb7 {[%emt 0:00:05]} 14. Nb2 {[%emt 0:02:23]} Qb6 {[%emt 0:00:43]} 15. Nd3 {[%emt 0:06:19]} f6 {[%emt 0:02:52]} 16. Bd2 {[%emt 0:05:57]} Qc6 {[%emt 0:15:08]} 17. Qg3 {[%emt 0:04:08]} fxe5 {[%emt 0:15:52]} 18. fxe5 {[%emt 0:16:55]} Rf5 {[%emt 0:08:45]} 19. Bh6 {[%emt 0:08:09]} 1/2-1/2

[Event "IX Iberoamericano Championship 2023"]
[Site "Panama City"]
[Date "2023.11.27"]
[Round "2.1"]
[White "Noboa Silva, Kevin"]
[Black "Henriquez Villagra, Cristobal"]
[Result "0-1"]
[ECO "E71"]
[WhiteElo "2318"]
[BlackElo "2630"]
[Annotator "TA"]
[PlyCount "78"]
[EventDate "2023.11.27"]
[EventType "swiss"]
[EventCountry "PAN"]
[SourceTitle "playchess.com"]
[Source "ChessBase"]
[SourceQuality "1"]
[TimeControl "5400+30"]

{[%evp 10,78,38,37,42,25,43,56,62,19,18,13,25,0,0,0,5,-83,-93,-72,-35,-72,-61,-123,-122,-126,-35,-46,-27,-50,-40,-19,0,0,0,0,0,0,2,0,0,0,22,31,51,0,0,0,0,-227,-116,-102,-31,-69,-34,-822,-790,-846,-801,-772,-733,-768,-753,-754,-726,-5493,-5447,-29995,-29996,-29998,-29999]} 1. d4 {[%emt 0:00:04]} Nf6 {[%emt 0:01:45]} 2. c4 {[%emt 0:00:24]} g6 {[%emt 0:00:05]} 3. Nc3 {[%emt 0:00:27]} Bg7 {[%emt 0:00:05]} 4. e4 {[%emt 0:00:47]} d6 {[%emt 0:00:06]} 5. h3 {[%emt 0:00:31]} Nbd7 {[%emt 0:00:06]} 6. Bd3 {[%emt 0:02:23]} e5 {[%emt 0:01:35] E71: King's Indian: 4 e4 d6 5 h3.} 7. d5 {[%emt 0:00:18]} Nc5 {[%emt 0:02:29]} 8. Bc2 {[%emt 0:00:21]} Nh5 $5 {[%emt 0:01:05][%mdl 4] White is slightly better. An interesting side line.} 9. b4 {[%emt 0:05:48]} Nd7 {[%emt 0:00:29] [#]} 10. Rb1 $146 {[%emt 0:07:09]} ({Predecessor:} 10. a3 a5 11. Rb1 O-O 12. Nge2 Nf4 13. O-O b6 14. Nb5 Nxe2+ 15. Qxe2 axb4 16. axb4 {1-0 Parligras,M (2554)-Khandelwal,A (2255) EU-ch 23rd Vrnjacka Banja 2023 (1)}) 10... O-O {[%emt 0:01:58]} 11. g3 {[%emt 0:03:08]} a5 {[%emt 0:07:20]} 12. a3 {[%emt 0:01:33]} Qe7 {[%emt 0:12:41]} 13. Be3 {[%emt 0:11:48]} (13. Qe2 $11 {remains equal.}) 13... axb4 $17 {[%emt 0:03:59]} 14. axb4 {[%emt 0:00:13]} Nb6 {[%emt 0:00:12]} 15. Bb3 {[%emt 0:06:05]} f5 $1 {[%emt 0:06:02]} 16. c5 {[%emt 0:02:09]} (16. Bd2 $15) 16... f4 {[%emt 0:04:17]} 17. gxf4 {[%emt 0:13:24]} Nd7 {[%emt 0:00:34]} (17... exf4 $17 18. Bd4 Nd7) 18. f5 {[%emt 0:07:35]} Nf4 {[%emt 0:00:38]} 19. fxg6 {[%emt 0:04:41]} Ng2+ {[%emt 0:01:23]} 20. Kd2 {[%emt 0:00:26]} Nxe3 {[%emt 0:00:08]} (20... Kh8 {is more complex.} 21. Qh5 Nf6 22. Bg5 h6) 21. fxe3 {[%emt 0:02:30]} hxg6 {[%emt 0:00:19]} 22. Nf3 {[%emt 0:02:09]} Kh8 {[%emt 0:03:40]} (22... dxc5 $2 23. d6+ $18) (22... Ra3 23. Rg1 $16 (23. Nb5 Nf6 $11)) 23. cxd6 {[%emt 0:09:20]} Qxd6 {[%emt 0:03:52]} 24. Rf1 {[%emt 0:03:12]} Bh6 {[%emt 0:01:58]} 25. Nh4 $1 {[%emt 0:03:15]} Rxf1 {[%emt 0:11:17]} 26. Qxf1 {[%emt 0:00:08]} Nf8 {[%emt 0:00:08]} 27. Qf7 {[%emt 0:03:34]} (27. Qf2 $14) 27... Bd7 $1 $11 {[%emt 0:00:16]} 28. Rf1 {[%emt 0:08:20]} Bg5 {[%emt 0:01:32] Dodges Rf6. The board is on fire.} 29. Nf3 {[%emt 0:01:50] [#]} (29. Qf2 $1 $11) 29... Bxe3+ $1 {[%emt 0:01:57][%mdl 512]} 30. Kc2 {[%emt 0:01:08] [#]} (30. Kxe3 $2 Be8 31. Nxe5 Qb6+ 32. Kd2 Bxf7 33. Rxf7 Nh7 $19) (30. Kd3 b5) 30... Bh6 {[%emt 0:04:59] This pair of bishops is nice.} (30... Qxb4 $2 31. d6 $18 (31. Nxe5 Bd4 $11) (31. Nxe5 Bd4 $11)) (30... Ra3 $2 31. Nxe5 Ra8 32. Qf6+ (32. Nc4 Qh2+ 33. Kd3 Bh6 $16) 32... Qxf6 33. Rxf6 $18) (30... Nh7 $1 $17 {And now ...Rf8 would win.} 31. Nh4 Rg8) 31. h4 $15 {[%emt 0:00:36]} Nh7 $1 {[%emt 0:07:07] Against Ng5. aiming for ...Rf8.} (31... Qxb4 $2 32. d6 $18 (32. Nxe5 Bg7 $11) (32. Nxe5 Bg7 $11)) (31... Ra3 32. Ng5 $11) 32. Nxe5 $2 {[%emt 0:00:25][%mdl 8192] White does not recover from this.} Qxe5 $19 {[%emt 0:00:09]} 33. Qxd7 {[%emt 0:00:05] [#]} Qh2+ $1 {[%emt 0:00:09]} 34. Kd3 {[%emt 0:01:10]} Qd2+ {[%emt 0:04:26]} ({Not} 34... Qxh4 35. Rg1 $15 (35. Qxc7 $2 {perishes.} Qh3+ 36. Kc2 Qg2+ 37. Kb1 Qxf1+ $19)) 35. Kc4 {[%emt 0:00:02] [#]} b5+ $1 {[%emt 0:00:22][%mdl 576] Deflection} 36. Qxb5 {[%emt 0:00:23]} Bg7 {[%emt 0:00:08][%csl Gg7][%cal Rd2c3]} 37. Kc5 {[%emt 0:01:05]} Qxc3+ {[%emt 0:00:28]} 38. Qc4 {[%emt 0:00:20]} Qe3+ {[%emt 0:00:05]} 39. Kc6 {[%emt 0:00:29]} Qb6+ {[%emt 0:00:05] A cool game by Henriquez Villagra.   Weighted Error Value: White=0.65/Black=0.14 (very precise)} 0-1

[Event "IX Iberoamericano Championship 2023"]
[Site "Panama City"]
[Date "2023.11.27"]
[Round "2.2"]
[White "Cori, Jorge"]
[Black "Martins, Bruno Andre Leite"]
[Result "1-0"]
[ECO "D05"]
[WhiteElo "2626"]
[BlackElo "2323"]
[Annotator "TA"]
[PlyCount "91"]
[EventDate "2023.11.27"]
[EventType "swiss"]
[EventCountry "PAN"]
[SourceTitle "playchess.com"]
[Source "ChessBase"]
[SourceQuality "1"]
[TimeControl "5400+30"]

{[%evp 16,91,5,0,23,8,18,16,27,28,48,-5,8,15,100,97,108,65,76,70,67,68,66,65,72,67,262,261,463,457,410,0,73,78,74,60,56,51,83,60,64,67,62,54,40,23,51,51,60,51,135,139,144,125,114,110,210,188,217,217,214,213,198,195,251,245,345,243,255,241,468,432,450,435,972,973,808,693]} 1. d4 {[%emt 0:04:32]} Nf6 {[%emt 0:00:11]} 2. Nf3 {[%emt 0:01:06]} e6 {[%emt 0:00:38]} 3. e3 {[%emt 0:00:05]} d5 {[%emt 0:02:03]} 4. Bd3 {[%emt 0:00:18]} Bd6 {[%emt 0:01:20]} 5. O-O {[%emt 0:00:20]} O-O {[%emt 0:00:16]} 6. b3 {[%emt 0:00:03]} c5 {[%emt 0:01:03]} 7. Bb2 {[%emt 0:00:11]} b6 {[%emt 0:07:11]} 8. Nbd2 {[%emt 0:00:30]} Bb7 {[%emt 0:02:53]} 9. Qe2 {[%emt 0:04:25]} Nbd7 {[%emt 0:13:01] D05: Colle System with ...e6.} 10. Ne5 {[%emt 0:00:34]} Qe7 {[%emt 0:06:47]} (10... Qc7 $5 {[%cal Rd7e5]}) 11. a4 {[%emt 0:03:50]} a6 {[%emt 0:04:45] The position is equal.} 12. f4 {[%emt 0:00:47]} Rfc8 {[%emt 0:03:52] [#]} 13. f5 $146 {[%emt 0:23:34]} (13. Rf3 $14) ({Predecessor:} 13. Rad1 Ne8 14. Rf3 f5 15. Rh3 Nef6 16. Rg3 Bxe5 17. fxe5 Ne4 18. Bxe4 fxe4 19. Nf1 {1-0 Bury,M (1461)-Bartnik,M (1581) Ustron op-C 2021 (6)}) 13... cxd4 {[%emt 0:12:29]} 14. exd4 {[%emt 0:02:21]} Bb4 {[%emt 0:00:29]} (14... exf5 $11 {keeps the balance.} 15. Rxf5 (15. Bxf5 g6 $11) 15... g6) 15. fxe6 $16 {[%emt 0:05:03]} fxe6 {[%emt 0:00:29]} 16. Ndf3 {[%emt 0:00:18]} Nxe5 {[%emt 0:06:55]} (16... Ne4 $2 17. Nxd7 Qxd7 18. Ne5 $18) 17. Nxe5 {[%emt 0:07:21]} (17. dxe5 Bc5+ 18. Bd4 Ne4 $11) 17... Rf8 $1 {[%emt 0:04:55]} 18. Rf3 {[%emt 0:02:49]} Ne4 {[%emt 0:04:19]} 19. Raf1 {[%emt 0:01:00]} Rxf3 {[%emt 0:00:22]} 20. Rxf3 {[%emt 0:11:49]} Nf6 $2 {[%emt 0:09:46] [#]} (20... Rf8 $1 $14) 21. Bc1 $1 $18 {[%emt 0:01:36] Black must now prevent Bg5.} (21. c3 Bd6 $14) 21... Qc7 $2 {[%emt 0:09:53]} (21... Rf8 {was worth a try.} 22. Rg3 (22. Bxa6 Bxa6 23. Qxa6 Qc7 $16) 22... Bd6) 22. Rh3 {[%emt 0:18:23]} Rf8 {[%emt 0:01:08]} 23. Rf3 $2 {[%emt 0:06:20]} (23. Bxa6 $2 Bxa6 24. Qxa6 Qxc2 $19) ({White has to play} 23. Qg4 $18 Bc8 24. Qh4) 23... Ne4 {[%emt 0:01:26]} (23... Ra8 $1 $11 {remains equal.}) 24. Rxf8+ {[%emt 0:00:26]} (24. Bxa6 Bxa6 25. Rxf8+ Bxf8 $17) (24. Be3 {is more complex.} Qc3 25. Kh1 Rxf3 26. Qxf3 Qc7 27. Qg4) 24... Bxf8 {[%emt 0:00:06]} 25. Be3 {[%emt 0:00:03]} ({Stronger than} 25. Bxa6 Bxa6 26. Qxa6 Qxc2 $17) 25... Bd6 {[%emt 0:01:38]} 26. Qg4 {[%emt 0:00:24]} ({Reject} 26. Bxa6 Bxa6 27. Qxa6 Qxc2 $11) 26... Qe7 {[%emt 0:03:01]} 27. h4 {[%emt 0:00:51]} Nf6 {[%emt 0:00:50]} 28. Qg5 {[%emt 0:00:36] White has more active pieces.} Ne4 {[%emt 0:00:58]} 29. Qf4 {[%emt 0:02:16]} (29. Qxe7 {simplifies} Bxe7 30. Nf3 Bd6 31. Bxe4 dxe4 32. Ng5) 29... Bc7 {[%emt 0:01:35]} 30. Qg4 {[%emt 0:01:30]} Nf6 {[%emt 0:00:31]} 31. Qg5 {[%emt 0:00:13]} Qb4 {[%emt 0:00:33]} 32. Kf1 {[%emt 0:01:11] Wards off Qe1+} Qc3 {[%emt 0:00:30]} (32... Qf8 $14) 33. Ng4 $16 {[%emt 0:01:10]} Bd8 {[%emt 0:00:28]} (33... Qa1+ $2 34. Ke2 Nxg4 35. Qxg4 $18) 34. Nxf6+ {[%emt 0:00:53]} Bxf6 {[%emt 0:00:06]} 35. Qh5 {[%emt 0:00:23][%cal Rh5e8]} g6 {[%emt 0:00:29] [#]} (35... Kf8 $16) 36. Qg4 $1 $18 {[%emt 0:00:06]} ({Inferior is} 36. Bxg6 hxg6 37. Qxg6+ Bg7 38. Qxe6+ Kh8 $11) 36... Bc8 {[%emt 0:00:27]} 37. h5 {[%emt 0:00:46][%cal Bh4h5,Bh5g6,Bg6h7][%mdl 32]} e5 {[%emt 0:00:14]} 38. Qf3 {[%emt 0:00:09]} Qc6 {[%emt 0:01:08] Hoping for ...e4.} 39. hxg6 {[%emt 0:00:42]} e4 {[%emt 0:00:36]} (39... hxg6 {was called for.} 40. Bxg6 e4) 40. Qh5 {[%emt 0:00:28]} Bg7 {[%emt 0:00:36]} (40... hxg6 {was necessary.} 41. Qxg6+ Kf8) 41. gxh7+ $40 {[%emt 0:00:09][%mdl 128] White has strong attack.} Kh8 {[%emt 0:00:10]} 42. Be2 {[%emt 0:00:07]} Be6 $2 {[%emt 0:00:50]} (42... b5 43. axb5 axb5) 43. Bxa6 {[%emt 0:00:32] White is clearly winning.} Qd7 {[%emt 0:00:31]} 44. Bb5 {[%emt 0:00:09]} Bf7 {[%emt 0:00:28]} (44... Qd8 $142 45. c3 Qf6+ 46. Ke2 Bf7) 45. Bxd7 {[%emt 0:00:12]} Bxh5 {[%emt 0:00:02]} 46. Ke1 {[%emt 0:00:25] Weighted Error Value: White=0.20 (precise) /Black=0.45} 1-0